Cogmind - Beta 10.2 @@@ ROGUE MODE // 2021.03.18 @ 11:21:04 Player: ChromeKnight Result: Destroyed by Y-45 Defender with Beam Rifle Performance ------------- Evolutions (1) 500 Regions Visited (3) 600 Robots Destroyed (18) 90 Value Destroyed (380) 380 Prototype IDs (0) 0 Alien Tech Used (0) 0 Bonus (0) 0 TOTAL SCORE: 1570 Bonus ------- None Cogmind --------- Core Integrity 0/400 Matter 192/300 Energy 93/125 System Corruption 0% Temperature Cool (9) Movement Core (650) Ox12 Location -9/Materials Parts ------- > --- POWER (1) -------- Light Ion Engine > --- PROPULSION (2) --- (None) > --- UTILITY (4) ------ High-capacity Storage Unit > --- WEAPON (2) ------- Shotgun > --- INVENTORY (12) --- Aluminum Leg Aluminum Leg Aluminum Leg Small Storage Unit Peak State ------------ > --- POWER ------------ Light Ion Engine > --- PROPULSION ------- Aluminum Leg Aluminum Leg > --- UTILITY ---------- Improved Heat Sink High-capacity Storage Unit Hardened Light Armor Plating > --- WEAPON ----------- Shotgun Heavy Battle Rifle > --- INVENTORY -------- Light Ion Engine Aluminum Leg Aluminum Leg Aluminum Leg Small Storage Unit Shotgun Shotgun Shotgun [Rating: 16] Favorites ----------- Power Light Ion Engine Engine Light Ion Engine Propulsion Aluminum Leg Leg Aluminum Leg Utility High-capacity Storage Unit Device Improved Heat Sink Storage High-capacity Storage Unit Protection Hardened Light Armor Plating Weapon Shotgun Energy Gun Medium Laser Ballistic Gun Shotgun Build | -11 -10 -10 -9 ------- Run | Scr Mat Min Mat Slots Evolved 2 | . . . 2 Power . | . . . . Propulsion . | . . . . Utility 2 | . . . 2 Weapon . | . . . . Parts Attached 23 | 7 9 2 5 Power 3 | 1 . 1 1 Engine 3 | 1 . 1 1 Core . | . . . . Reactor . | . . . . Propulsion 7 | 2 5 . . Treads . | . . . . Leg 7 | 2 5 . . Wheel . | . . . . Hover . | . . . . Flight . | . . . . Utility 4 | 1 2 . 1 Device 1 | . 1 . . Storage 2 | 1 1 . . Processor . | . . . . Hackware . | . . . . Protection 1 | . . . 1 Artifact . | . . . . Weapon 9 | 3 2 1 3 Energy Gun 1 | 1 . . . Energy Cannon . | . . . . Ballistic Gun 8 | 2 2 1 3 Ballistic Cannon . | . . . . Launcher . | . . . . Special Weapon . | . . . . Impact Weapon . | . . . . Slashing Weapon . | . . . . Piercing Weapon . | . . . . Special Melee Weapon . | . . . . Unidentified Prototypes . | . . . . Parts Lost 9 | . . . 9 Power 1 | . . . 1 Propulsion 2 | . . . 2 Utility 2 | . . . 2 Weapon 4 | . . . 4 Highest Loss Streak 7 | . . . 7 Average Slot Usage (%) 93 | . 96 100 71 Engine 12 | . 14 14 7 Leg 25 | . 28 28 16 Device 11 | . 11 14 8 Storage 13 | . 14 14 11 Protection 1 | . . . 7 Ballistic Gun 26 | . 27 28 20 Naked Turns . | . . . . Heaviest Build 48 | 10 42 43 48 Greatest Support 20 | 20 20 20 20 Greatest Overweight (x) 12 | 2 2 2 12 Average Overweight (x) 1 | . . 2 2 Largest Inventory Capacity 12 | 6 12 12 12 Average Capacity 11 | 5 10 12 12 Most Carried 8 | 1 7 8 8 Average Carried 6 | . 5 7 7 Final Capacity 12 | 6 12 12 12 Final Carried 8 | 1 6 8 4 Class Distribution -------------------- 100% | Mutant Dominant Class ---------------- Mutant | -10/Materials Mutant | -10/Mines Mutant | -9/Materials Resources | -11 -10 -10 -9 ----------- Run | Scr Mat Min Mat Matter Collected 581 | 228 217 114 22 Remotely . | . . . . Salvage Created 442 | . 254 61 127 Parts 44 | . 28 4 12 Haulers Intercepted . | . . . . Recyclers Shooed . | . . . . Parts Field Recycled . | . . . . Retrieved Matter . | . . . . Parts Self-Destructed . | . . . . Prevented . | . . . . Kills | -11 -10 -10 -9 ------- Run | Scr Mat Min Mat Combat Hostiles Destroyed 17 | . 8 4 5 Guns 17 | . 8 4 5 Classes Destroyed 3 | . 3 . . Builder 1 | . 1 . . Swarmer 9 | . 3 4 2 Grunt 8 | . 5 . 3 Best Kill Streak 4 | . 4 2 3 Combat Bots Only 3 | . 3 2 3 Max Kills in Single Turn 2 | . 2 1 1 Gunslinging . | . . . . Exploded . | . . . . Melee . | . . . . Uniques/NPCs Destroyed . | . . . . Combat | -11 -10 -10 -9 -------- Run | Scr Mat Min Mat Damage Taken 1812 | . 407 141 1264 Core 568 | . 118 49 401 Absorbed by Shields . | . . . . Core Remaining (%) 66 | 100 . 33 . Volleys Fired 50 | . 21 11 18 Largest 2 | . 2 2 2 Hottest 56 | . 46 46 56 Shots Fired 97 | . 42 22 33 Gun 97 | . 42 22 33 Cannon . | . . . . Launcher . | . . . . Special . | . . . . Kinetic 97 | . 42 22 33 Thermal . | . . . . Explosive . | . . . . Electromagnetic . | . . . . Robot Hit Streak 25 | . 25 5 4 Robot Miss Streak 6 | . 6 6 3 Penetration Max . | . . . . Secondary Targets 3 | . 1 . 2 Max Gunslinging Chain 1 | . 1 . 1 Shots Hit Robots 74 | . 33 14 27 Core Hits 27 | . 16 4 7 Critical Hits . | . . . . Critical Kills . | . . . . Critical Parts Destroyed . | . . . . Melee Attacks . | . . . . Impact . | . . . . Slashing . | . . . . Piercing . | . . . . Sneak Attacks . | . . . . Combat Hostiles . | . . . . Follow-up Attacks . | . . . . Damage Inflicted 790 | . 359 142 289 Guns 787 | . 359 142 286 Cannons . | . . . . Explosions . | . . . . Melee . | . . . . Ramming 3 | . . . 3 Kinetic 787 | . 359 142 286 Thermal . | . . . . Explosive . | . . . . Electromagnetic . | . . . . Impact . | . . . . Slashing . | . . . . Piercing . | . . . . Highest Corruption . | . . . . Average Corruption . | . . . . Corruption Purged . | . . . . Overload Shots . | . . . . Overflow Damage . | . . . . Projectiles . | . . . . Explosions . | . . . . Melee . | . . . . Knockbacks . | . . . . Impact . | . . . . Kinetic . | . . . . Secondary . | . . . . Self-Inflicted Damage 1 | . . . 1 Shots . | . . . . Rammed 1 | . . . 1 Targets Rammed 2 | . . 1 1 Kicked 1 | . . 1 . Crushed . | . . . . Highest Temperature 18 | . 18 . 1 Average Temperature 8 | . 9 . 1 Received Heat Transfer 519 | . 144 . 375 Siege Activations . | . . . . Robots Corrupted . | . . . . Combat Hostiles . | . . . . Parts Fried . | . . . . Impact Corruptions . | . . . . Robots Melted . | . . . . Combat Hostiles . | . . . . Parts Melted . | . . . . Heat Transferred . | . . . . Parts Sabotaged . | . . . . Parts Stolen . | . . . . Parts Stripped . | . . . . Power Chain Reactions . | . . . . Missiles Intercepted . | . . . . Alert | -11 -10 -10 -9 ------- Run | Scr Mat Min Mat Peak Influence 255 | . 255 196 100 Initial 21 | . . 21 . Average 75 | . 86 80 57 Maximum Alert Level 1 | . 1 . . Low Security (%) 98 | 100 94 100 100 Level 1 1 | . 5 . . Level 2 . | . . . . Level 3 . | . . . . Level 4 . | . . . . Level 5 . | . . . . High Security . | . . . . Max Security . | . . . . Squads Dispatched 5 | . 2 . 3 Investigation 1 | . . . 1 Extermination . | . . . . Reinforcement 4 | . 2 . 2 Assault . | . . . . Garrison . | . . . . Intercept . | . . . . Construction Impeded . | . . . . Haulers Reinforced . | . . . . Stealth | -11 -10 -10 -9 --------- Run | Scr Mat Min Mat Distress Signals 3 | . 1 . 2 Communications Jammed . | . . . . Distress Signals . | . . . . Times Spotted 37 | . 13 8 16 Peak Tracking Total 6 | . 4 3 6 Tactical Retreats 6 | . 2 3 1 Traps | -11 -10 -10 -9 ------- Run | Scr Mat Min Mat Traps Triggered 1 | . . . 1 Indirectly . | . . . . Trap Hack Attempts . | . . . . Triggered . | . . . . Disarmed . | . . . . Reprogrammed . | . . . . Reused . | . . . . Traps Extracted . | . . . . Installed . | . . . . Triggered . | . . . . Machines | -11 -10 -10 -9 ---------- Run | Scr Mat Min Mat Machines Disabled . | . . . . Max in Single Turn . | . . . . Machines Sabotaged . | . . . . Garrisons Compromised . | . . . . Overloaded Fab Kills . | . . . . Fab Network Shutdowns . | . . . . Hacking | -11 -10 -10 -9 --------- Run | Scr Mat Min Mat Machines Accessed . | . . . . Terminals . | . . . . Fabricators . | . . . . Repair Stations . | . . . . Recycling Units . | . . . . Scanalyzers . | . . . . Garrison Access . | . . . . Total Hacks . | . . . . Successful . | . . . . Failed . | . . . . Catastrophic . | . . . . Database Lockouts . | . . . . Manual . | . . . . Terminals . | . . . . Fabricators . | . . . . Repair Stations . | . . . . Recycling Units . | . . . . Scanalyzers . | . . . . Garrison Access . | . . . . Terminal Hacks . | . . . . Fabricator Hacks . | . . . . Repair Station Hacks . | . . . . Recycling Unit Hacks . | . . . . Scanalyzer . | . . . . Garrison Access Hacks . | . . . . Unauthorized Hacks . | . . . . Terminals . | . . . . Fabricators . | . . . . Repair Stations . | . . . . Recycling Units . | . . . . Scanalyzers . | . . . . Garrison Access . | . . . . Data Cores Recovered . | . . . . Used . | . . . . Hacking Detections . | . . . . Full Trace Events . | . . . . Feedback Events . | . . . . Feedback Blocked . | . . . . Robot Schematics Acquired . | . . . . Robots Built . | . . . . Matter . | . . . . Time . | . . . . Total Robot Build Rating . | . . . . Part Schematics Acquired . | . . . . Parts Built . | . . . . Matter . | . . . . Time . | . . . . Total Part Build Rating . | . . . . Parts Repaired . | . . . . Time . | . . . . Parts Recycled . | . . . . Recycled Matter . | . . . . Retrieved Matter . | . . . . Retrieved Components . | . . . . Parts Scanalyzed . | . . . . Part Schematics Acquired . | . . . . Parts Damaged . | . . . . Bothacking | -11 -10 -10 -9 ------------ Run | Scr Mat Min Mat Used RIF Installer . | . . . . Robots Hacked . | . . . . Non-combat . | . . . . Combat . | . . . . Robot Hacks Applied . | . . . . Relay Couplers Released . | . . . . Robots Rewired . | . . . . Allies Hacked . | . . . . Hacks Repelled . | . . . . Allies | -11 -10 -10 -9 -------- Run | Scr Mat Min Mat Total Allies . | . . . . Largest Group . | . . . . Highest-Rated Group . | . . . . Highest-Rated Ally . | . . . . Total Orders . | . . . . Ally Attacks . | . . . . Total Damage . | . . . . Kills . | . . . . Allies Corrupted . | . . . . Allies Melted . | . . . . Intel | -11 -10 -10 -9 ------- Run | Scr Mat Min Mat Robot Analysis Total . | . . . . Derelict Logs Recovered 3 | . . 3 . Drone Launches . | . . . . Drone Recoveries . | . . . . Exploration | -11 -10 -10 -9 ------------- Run | Scr Mat Min Mat Turns Passed 1312 | 48 434 578 252 Spaces Moved 645 | 35 229 299 82 Core 25 | 17 . . 8 Treads . | . . . . Legs 620 | 18 229 299 74 Wheels . | . . . . Hover . | . . . . Flight . | . . . . Fastest Speed 50 | 50 120 180 180 Average Speed 169 | 107 146 180 224 Slowest Speed 650 | 150 180 180 650 Overloaded Moves . | . . . . Propulsion Burnouts . | . . . . Robots Hopped . | . . . . Cave-ins Triggered . | . . . . Exploration Rate (%) 30 | 3 39 66 15 Regions Visited 3 Branch Regions 1 Pre-discovered Areas . | . . . . Known Exits Taken . | . . . . Unknown Exits Taken 3 | 1 1 1 . Scrap Searched . | . . . . Spaces Dug . | . . . . Terrain Destroyed 2 | . . . 2 Melee . | . . . . Projectile 2 | . . . 2 AOE . | . . . . Terrain Rammed . | . . . . Walls Destroyed . | . . . . Machines Disabled . | . . . . Actions | -11 -10 -10 -9 --------- Run | Scr Mat Min Mat Total 758 | 42 289 315 112 Wait 29 | . 20 3 6 Move 642 | 34 228 298 82 Hop . | . . . . Pick Up 4 | . 4 . . Fast Attach 11 | 7 3 . 1 Attach 4 | . . . 4 Detach 1 | 1 . . . Swap 8 | . 6 2 . Drop 7 | . 7 . . Fire 50 | . 21 11 18 Melee . | . . . . Ram 1 | . . . 1 Kick 1 | . . 1 . Crush . | . . . . Escape Stasis . | . . . . Rewire . | . . . . Trap . | . . . . Miscellaneous . | . . . . Route ------- -11/Scrapyard -10/Materials -10/Mines -9/Materials History --------- Turn | Location | Event 16 | -11/Scrapyard | Discovered new exit (range 16) 49 | -11/Scrapyard | Entered Materials 308 | -10/Materials | Build established: Mutant 463 | -10/Materials | Discovered new exit (range 8) 483 | -10/Materials | Entered Mines 500 | -10/Mines | Core integrity fell below 50% 587 | -10/Mines | Learned Materials garrison access intel 894 | -10/Mines | A weapon hastily lodged in a ceiling crevice suddenly fell to the ground 1050 | -10/Mines | Learned 4 Materials zone layouts 1052 | -10/Mines | Discovered new exit (range 5) 1061 | -10/Mines | Entered Materials 1061 | -9/Materials | Evolved 2 slots: Utility x2 1275 | -9/Materials | Core integrity fell below 50% 1284 | -9/Materials | Lost 7 parts (1p2n2u2w) 1303 | -9/Materials | Core integrity fell below 20% 1313 | -9/Materials | Destroyed by Y-45 Defender with Beam Rifle Last Messages --------------- 01234_ Critical hit. 01237_ Shotgun destroyed. 01239_ U-05 Engineer lays Concrete. 01239_ Lgt. Ion Engine destroyed. 01241_ U-05 Engineer lays Concrete. 01241_ G-34 Mercenary destroyed. 01242_ Hrd. Light Armor Plating destroyed. 01243_ Hvy. Battle Rifle destroyed. 01243_ Aluminum Leg destroyed. 01248_ G-34 Mercenary destroyed. 01248_ Switching to secondary target: Y-45 Defender. 01250_ Aluminum Leg destroyed. 01253_ Imp. Heat Sink destroyed. 01264_ Slammed into O-16 Technician. 01264_ Destabilizing: System interference. 01264_ Shotgun temporarily disabled. 01296_ R-06 Scavenger collects Aluminum Leg. 01299_ Shotgun destroyed. 01299_ R-06 Scavenger collects Aluminum Leg. 01302_ Shotgun destroyed. Map ----- +----------------------------------------------------+ | ?????????????????????????????????????????????????? | | ?????????????????????????????????????????????????? | | ?????????????????????????????????????????????????? | | ?????????????????????????????????????????????????? | | ?????????????????????????????????????????????????? | | ?????????????????????????????????????????????????? | | ?????????????????????????????????????????????????? | | ?????????????????????????????????????????????????? | | ?????????????????????????????????????????????????? | | ?????????????????????????????????????????????????? | | ?????????????????????????????????????????????????? | | ?????????????????????# ????????????????????????? | | ?????????????????????# ????????????????????????? | | ?????????????????????# ????????????????????????? | | ?????????????????????# ????????????????????????? | | ?????????????????????# ????????????????????????? | | ?????????????????????# ????????????????????????? | | ?????????????????????# ????????????????????????? | | ?????????????????????# #???????????????????????? | | ?????????????????????# #???????????????????????? | | ?????????????????????# #???????????????????????? | | ???????????????# """ # #???????????????????????? | | ???????????????# """ # ############## ?????????? | | ???????????????# # ????????? | | ??????########## """ + ????????? | | ??????# """ # """ # @ ????????? | | ??????# "R" # """ # YY#########???????????????? | | ??????# " " # # #???????????????????????? | | ??????# # # #???????????????????????? | | ??????# # # [######################### | | ???#### """ # ! ; !%=%! T | | ??? + """ ####### %[ | | ???#### """ #?????# = ] | | ??????# #?????############### [[ """ ] | | ???########/############ ???????# [[ """ | | ??? # # ???????# [ """ | | ??? # """ # ""???? + | | ??? # """ # """ # | | ???###+##+#### # """ # """ "T"?# | | ??? #??# # # ""??## ## | | ??? #??# # """ ########?????# ## | | ??? #??# # """ #####????????# ## | | ??? #??# + """ #"" "????????# ## | | ???########??# # # " "????????# ## | | ???""" ####### ####### ???????? # []] | | ???"Y" ## ??????? # []] | | # ??????????????????????????????? # []] | | + ??????????????????????????????? # | | # ??????????????????????????????### # | | # ????????????????????????????????####### // | +----------------------------------------------------+ Best States ------------- Heat Dissipation 42 Energy Generation 10 Energy Capacity 125 Matter Stores 300 Matter Capacity 300 Sight Range 16 Terrain Scan Density 10 Armor Coverage 150 Evasion (%) 40 Item Schematics ----------------- None Robot Schematics ------------------ None Fabricated ------------ Nothing Alien Tech Used ----------------- None Achievements -------------- None Challenges ------------ None Game ------ Seed BeamAngularBox Manual? 0 Play Time 00:08:55 Cumulative 72.4 hours Start 2021.03.17 @ 19:39:15 End 2021.03.18 @ 11:21:04 Sessions 3 Manual Loads 0 Difficulty Rogue Special Mode None Game No. 196 Rogue 44 Adventurer 148 Explorer 4 Win Type - Total 0 Types 0/0/0/0/0/0/0/0/0 Lore% 50 Gallery% 60 Achievement% 48 Wizard Run 0 Options --------- ASCII 0 Keyboard 0 Movement Numpad Keybinds 0 Fullscreen 1 Font 14/X11 Map View 84x54 Tactical HUD 1 Map Filters NONE Filters NONE Steam 1 RUN: 875433c5-92de-4482-b68e-d9739d01a51d